[Event "Titled Tuesday Blitz August 3 2021"]
[White "Belous, Vladimir"]
[Black "Ljukin, Sergei"]
[WhiteFideId "4174003"]
[BlackFideId "14102200"]
[WhiteElo "2510"]
[BlackElo "2309"]
[Result "1-0"]
[Round "03"]
[TimeControl "180+1"]
[Date "2021.08.03"]
[WhiteClock "0:01:09"]
[BlackClock "0:00:26"]

1. c4 {[%clk 0:03:00]}  c6 {[%clk 0:02:22]} 2. Nf3 {[%clk 0:02:59]}  d5 {[%clk 0:02:21]} 3. e3 {[%clk 0:03:00]}  Nf6 {[%clk 0:02:21]} 4. d4 {[%clk 0:02:59]}  e6 {[%clk 0:02:22]} 5. Nc3 {[%clk 0:02:56]}  Nbd7 {[%clk 0:02:21]} 6. Bd3 {[%clk 0:02:57]}  dxc4 {[%clk 0:02:22]} 7. Bxc4 {[%clk 0:02:58]}  b5 {[%clk 0:02:22]} 8. Be2 {[%clk 0:02:58]}  a6 {[%clk 0:02:23]} 9. O-O {[%clk 0:02:58]}  c5 {[%clk 0:02:23]} 10. d5 {[%clk 0:02:50]}  exd5 {[%clk 0:02:13]} 11. a4 {[%clk 0:02:38]}  Bb7 {[%clk 0:01:50]} 12. axb5 {[%clk 0:02:38]}  axb5 {[%clk 0:01:49]} 13. Rxa8 {[%clk 0:02:37]}  Bxa8 {[%clk 0:01:49]} 14. Bxb5 {[%clk 0:02:36]}  Be7 {[%clk 0:01:46]} 15. Ne5 {[%clk 0:02:32]}  O-O {[%clk 0:01:44]} 16. Nxd7 {[%clk 0:02:32]}  Nxd7 {[%clk 0:01:43]} 17. Nxd5 {[%clk 0:02:32]}  Ne5 {[%clk 0:01:32]} 18. e4 {[%clk 0:02:27]}  Bd6 {[%clk 0:01:26]} 19. Bf4 {[%clk 0:02:17]}  f5 {[%clk 0:01:23]} 20. exf5 {[%clk 0:01:24]}  Rxf5 {[%clk 0:00:55]} 21. Bg3 {[%clk 0:01:23]}  h5 {[%clk 0:00:33]} 22. Ne3 {[%clk 0:01:16]}  Rg5 {[%clk 0:00:26]} 23. f4 {[%clk 0:01:09]} 1-0


[Site "https://www.chess.com"]

[Event "Titled Tuesday Blitz August 3 2021"]
[White "Buscar, Michael"]
[Black "Ulko, Jaroslav"]
[WhiteFideId "2603616"]
[BlackFideId "4116658"]
[WhiteElo "2010"]
[BlackElo "2304"]
[Result "1-0"]
[Round "03"]
[TimeControl "180+1"]
[Date "2021.08.03"]
[WhiteClock "0:00:49"]
[BlackClock "0:00:18"]

1. d4 {[%clk 0:02:57]}  Nf6 {[%clk 0:02:58]} 2. c4 {[%clk 0:02:57]}  g6 {[%clk 0:02:58]} 3. Nc3 {[%clk 0:02:57]}  Bg7 {[%clk 0:02:58]} 4. e4 {[%clk 0:02:57]}  d6 {[%clk 0:02:58]} 5. Nf3 {[%clk 0:02:58]}  O-O {[%clk 0:02:58]} 6. Be2 {[%clk 0:02:59]}  e5 {[%clk 0:02:58]} 7. h3 {[%clk 0:02:59]}  exd4 {[%clk 0:02:57]} 8. Nxd4 {[%clk 0:03:00]}  Re8 {[%clk 0:02:57]} 9. Bf3 {[%clk 0:02:53]}  Nbd7 {[%clk 0:02:54]} 10. O-O {[%clk 0:02:52]}  c6 {[%clk 0:02:30]} 11. Re1 {[%clk 0:02:49]}  a5 {[%clk 0:02:17]} 12. g3 {[%clk 0:02:46]}  Ne5 {[%clk 0:02:15]} 13. Bg2 {[%clk 0:02:38]}  Nxc4 {[%clk 0:02:15]} 14. Bf4 {[%clk 0:02:39]}  Qb6 {[%clk 0:01:58]} 15. Na4 {[%clk 0:02:33]}  Qa7 {[%clk 0:01:47]} 16. Rc1 {[%clk 0:02:33]}  Ne5 {[%clk 0:01:46]} 17. Ne2 {[%clk 0:02:18]}  b5 {[%clk 0:01:30]} 18. Qxd6 {[%clk 0:02:11]}  Nh5 {[%clk 0:01:01]} 19. Be3 {[%clk 0:02:05]}  Qe7 {[%clk 0:00:56]} 20. Qxe7 {[%clk 0:02:01]}  Rxe7 {[%clk 0:00:57]} 21. Nb6 {[%clk 0:02:02]}  Rb8 {[%clk 0:00:57]} 22. Nxc8 {[%clk 0:01:20]}  Rxc8 {[%clk 0:00:58]} 23. Red1 {[%clk 0:01:20]}  Nc4 {[%clk 0:00:53]} 24. Bc5 {[%clk 0:01:20]}  Ree8 {[%clk 0:00:51]} 25. b3 {[%clk 0:01:20]}  Ne5 {[%clk 0:00:46]} 26. f4 {[%clk 0:01:20]}  Bh6 {[%clk 0:00:36]} 27. Rc2 {[%clk 0:01:11]}  Nxg3 {[%clk 0:00:35]} 28. fxe5 {[%clk 0:01:06]}  Nxe2+ {[%clk 0:00:35]} 29. Rxe2 {[%clk 0:01:06]}  Rxe5 {[%clk 0:00:35]} 30. Bd6 {[%clk 0:01:02]}  Re6 {[%clk 0:00:33]} 31. e5 {[%clk 0:01:02]}  f6 {[%clk 0:00:32]} 32. Rde1 {[%clk 0:00:57]}  fxe5 {[%clk 0:00:29]} 33. Bxe5 {[%clk 0:00:57]}  Rce8 {[%clk 0:00:28]} 34. Kf1 {[%clk 0:00:55]}  Rf8+ {[%clk 0:00:25]} 35. Rf2 {[%clk 0:00:53]}  Rfe8 {[%clk 0:00:23]} 36. Bc3 {[%clk 0:00:53]}  b4 {[%clk 0:00:21]} 37. Bd2 {[%clk 0:00:49]}  Bxd2 {[%clk 0:00:18]} 38. Rxe6 {[%clk 0:00:49]}  Rxe6 {[%clk 0:00:18]} 39. Rxd2 {[%clk 0:00:50]}  c5 {[%clk 0:00:18]} 40. Bd5 {[%clk 0:00:49]} 1-0


[Site "https://www.chess.com"]

[Event "Titled Tuesday Blitz August 3 2021"]
[White "Costachi, Mihnea"]
[Black "Ogloblin, Nikolay"]
[WhiteFideId "1217518"]
[BlackFideId "4139658"]
[WhiteElo "2482"]
[BlackElo "2244"]
[Result "1/2-1/2"]
[Round "03"]
[TimeControl "180+1"]
[Date "2021.08.03"]
[WhiteClock "0:00:13"]
[BlackClock "0:00:08"]

1. e4 {[%clk 0:02:58]}  c5 {[%clk 0:02:59]} 2. c4 {[%clk 0:02:57]}  Nc6 {[%clk 0:02:59]} 3. g3 {[%clk 0:02:57]}  Nf6 {[%clk 0:02:58]} 4. Bg2 {[%clk 0:02:57]}  e6 {[%clk 0:02:58]} 5. f4 {[%clk 0:02:58]}  d5 {[%clk 0:02:58]} 6. cxd5 {[%clk 0:02:57]}  exd5 {[%clk 0:02:58]} 7. e5 {[%clk 0:02:58]}  Ng4 {[%clk 0:02:50]} 8. h3 {[%clk 0:02:56]}  Nh6 {[%clk 0:02:50]} 9. Ne2 {[%clk 0:02:56]}  Nf5 {[%clk 0:02:46]} 10. O-O {[%clk 0:02:55]}  h5 {[%clk 0:02:45]} 11. Qb3 {[%clk 0:02:52]}  c4 {[%clk 0:02:43]} 12. Qf3 {[%clk 0:02:50]}  Bc5+ {[%clk 0:02:42]} 13. Kh2 {[%clk 0:02:50]}  Be6 {[%clk 0:02:41]} 14. b3 {[%clk 0:02:49]}  Ncd4 {[%clk 0:02:29]} 15. Nxd4 {[%clk 0:02:47]}  Nxd4 {[%clk 0:02:29]} 16. Qc3 {[%clk 0:02:43]}  h4 {[%clk 0:02:19]} 17. bxc4 {[%clk 0:02:38]}  hxg3+ {[%clk 0:02:18]} 18. Qxg3 {[%clk 0:02:38]}  g6 {[%clk 0:02:10]} 19. Ba3 {[%clk 0:02:36]}  Nf5 {[%clk 0:01:54]} 20. Qb3 {[%clk 0:02:31]}  Bxa3 {[%clk 0:01:47]} 21. Nxa3 {[%clk 0:02:32]}  dxc4 {[%clk 0:01:43]} 22. Qxb7 {[%clk 0:02:31]}  Rc8 {[%clk 0:01:39]} 23. Nb5 {[%clk 0:02:14]}  O-O {[%clk 0:01:39]} 24. Qf3 {[%clk 0:02:08]}  Qxd2 {[%clk 0:01:39]} 25. Rf2 {[%clk 0:02:07]}  Qb4 {[%clk 0:01:38]} 26. Nc3 {[%clk 0:02:07]}  Rfd8 {[%clk 0:01:36]} 27. Ne4 {[%clk 0:02:05]}  Rd3 {[%clk 0:01:34]} 28. Qg4 {[%clk 0:02:05]}  Kg7 {[%clk 0:01:25]} 29. Qg5 {[%clk 0:02:03]}  Qe7 {[%clk 0:01:24]} 30. Nf6 {[%clk 0:01:59]}  Rh8 {[%clk 0:01:22]} 31. Rf3 {[%clk 0:01:52]}  Qa3 {[%clk 0:01:21]} 32. Raf1 {[%clk 0:01:48]}  Qxa2 {[%clk 0:01:19]} 33. Ng4 {[%clk 0:01:29]}  Rd2 {[%clk 0:01:17]} 34. Qf6+ {[%clk 0:01:28]}  Kg8 {[%clk 0:01:16]} 35. R1f2 {[%clk 0:01:28]}  c3 {[%clk 0:01:08]} 36. Rxd2 {[%clk 0:01:19]}  Qxd2 {[%clk 0:01:05]} 37. Qg5 {[%clk 0:01:18]}  c2 {[%clk 0:00:54]} 38. Nf6+ {[%clk 0:01:16]}  Kg7 {[%clk 0:00:55]} 39. Ne4 {[%clk 0:01:17]}  c1=Q {[%clk 0:00:51]} 40. Qf6+ {[%clk 0:01:16]}  Kg8 {[%clk 0:00:51]} 41. Nxd2 {[%clk 0:01:16]}  Qxd2 {[%clk 0:00:50]} 42. Qg5 {[%clk 0:01:17]}  Rh5 {[%clk 0:00:48]} 43. Qf6 {[%clk 0:01:15]}  Nh4 {[%clk 0:00:34]} 44. Rg3 {[%clk 0:01:15]}  Nxg2 {[%clk 0:00:31]} 45. Rxg6+ {[%clk 0:01:15]}  Kf8 {[%clk 0:00:23]} 46. Qg7+ {[%clk 0:00:59]}  Ke7 {[%clk 0:00:19]} 47. Rxe6+ {[%clk 0:00:50]}  Kxe6 {[%clk 0:00:19]} 48. Qf6+ {[%clk 0:00:51]}  Kd7 {[%clk 0:00:16]} 49. Qxf7+ {[%clk 0:00:51]}  Kc6 {[%clk 0:00:16]} 50. Qc4+ {[%clk 0:00:41]}  Kb6 {[%clk 0:00:16]} 51. Qb3+ {[%clk 0:00:41]}  Kc5 {[%clk 0:00:16]} 52. Qa3+ {[%clk 0:00:38]}  Kd4 {[%clk 0:00:16]} 53. Qxa7+ {[%clk 0:00:36]}  Ke4 {[%clk 0:00:16]} 54. Qb7+ {[%clk 0:00:35]}  Kxf4 {[%clk 0:00:16]} 55. Qf7+ {[%clk 0:00:33]}  Ke4 {[%clk 0:00:16]} 56. Qc4+ {[%clk 0:00:28]}  Ke3 {[%clk 0:00:15]} 57. Qc5+ {[%clk 0:00:25]}  Ke2 {[%clk 0:00:14]} 58. Qc4+ {[%clk 0:00:22]}  Ke1 {[%clk 0:00:14]} 59. Qe4+ {[%clk 0:00:16]}  Ne3+ {[%clk 0:00:13]} 60. Kg3 {[%clk 0:00:17]}  Rf5 {[%clk 0:00:13]} 61. Qh1+ {[%clk 0:00:14]}  Ke2 {[%clk 0:00:12]} 62. Qe4 {[%clk 0:00:11]}  Qe1+ {[%clk 0:00:12]} 63. Kh2 {[%clk 0:00:11]}  Qf2+ {[%clk 0:00:11]} 64. Kh1 {[%clk 0:00:11]}  Qg2+ {[%clk 0:00:11]} 65. Qxg2+ {[%clk 0:00:11]}  Nxg2 {[%clk 0:00:12]} 66. Kxg2 {[%clk 0:00:12]}  Rxe5 {[%clk 0:00:12]} 67. Kg3 {[%clk 0:00:13]}  Ke3 {[%clk 0:00:12]} 68. Kg4 {[%clk 0:00:13]}  Ke4 {[%clk 0:00:13]} 69. h4 {[%clk 0:00:13]}  Ra5 {[%clk 0:00:12]} 70. h5 {[%clk 0:00:13]}  Ra1 {[%clk 0:00:10]} 71. Kg5 {[%clk 0:00:13]}  Rg1+ {[%clk 0:00:10]} 72. Kf6 {[%clk 0:00:14]}  Rf1+ {[%clk 0:00:09]} 73. Kg7 {[%clk 0:00:14]}  Kf5 {[%clk 0:00:09]} 74. h6 {[%clk 0:00:14]}  Rg1+ {[%clk 0:00:10]} 75. Kf7 {[%clk 0:00:14]}  Rh1 {[%clk 0:00:08]} 76. Kg7 {[%clk 0:00:14]}  Kg5 {[%clk 0:00:09]} 77. h7 {[%clk 0:00:14]}  Rd1 {[%clk 0:00:07]} 78. h8=Q {[%clk 0:00:12]}  Rd7+ {[%clk 0:00:07]} 79. Kf8 {[%clk 0:00:12]}  Rd8+ {[%clk 0:00:07]} 80. Kg7 {[%clk 0:00:13]}  Rxh8 {[%clk 0:00:08]} 81. Kxh8 {[%clk 0:00:13]} 1/2-1/2


[Site "https://www.chess.com"]

[Event "Titled Tuesday Blitz August 3 2021"]
[White "Demidov, Mikhail"]
[Black "Florescu, Codrut-Constantin"]
[WhiteFideId "4197143"]
[BlackFideId "1202200"]
[WhiteElo "2598"]
[BlackElo "2243"]
[Result "1-0"]
[Round "03"]
[TimeControl "180+1"]
[Date "2021.08.03"]
[WhiteClock "0:01:46"]
[BlackClock "0:01:08"]

1. Nf3 {[%clk 0:02:58]}  d5 {[%clk 0:01:46]} 2. g3 {[%clk 0:02:56]}  Nf6 {[%clk 0:01:45]} 3. Bg2 {[%clk 0:02:56]}  e6 {[%clk 0:01:46]} 4. O-O {[%clk 0:02:55]}  Be7 {[%clk 0:01:45]} 5. c4 {[%clk 0:02:56]}  O-O {[%clk 0:01:44]} 6. b3 {[%clk 0:02:56]}  c6 {[%clk 0:01:43]} 7. Bb2 {[%clk 0:02:56]}  Nbd7 {[%clk 0:01:43]} 8. Qc2 {[%clk 0:02:56]}  b6 {[%clk 0:01:42]} 9. d3 {[%clk 0:02:47]}  Bb7 {[%clk 0:01:42]} 10. e4 {[%clk 0:02:47]}  Rc8 {[%clk 0:01:37]} 11. Nbd2 {[%clk 0:02:46]}  a5 {[%clk 0:01:32]} 12. Rfe1 {[%clk 0:02:44]}  Bb4 {[%clk 0:01:25]} 13. a3 {[%clk 0:02:43]}  Bc5 {[%clk 0:01:23]} 14. h3 {[%clk 0:02:41]}  b5 {[%clk 0:01:21]} 15. e5 {[%clk 0:02:38]}  Ne8 {[%clk 0:01:20]} 16. d4 {[%clk 0:02:35]}  Be7 {[%clk 0:01:20]} 17. c5 {[%clk 0:02:35]}  Nc7 {[%clk 0:01:20]} 18. Nf1 {[%clk 0:02:34]}  b4 {[%clk 0:01:20]} 19. Qd2 {[%clk 0:02:25]}  Rb8 {[%clk 0:01:18]} 20. axb4 {[%clk 0:02:24]}  axb4 {[%clk 0:01:18]} 21. Ne3 {[%clk 0:02:20]}  Ba6 {[%clk 0:01:17]} 22. h4 {[%clk 0:02:18]}  f6 {[%clk 0:01:17]} 23. exf6 {[%clk 0:02:15]}  Nxf6 {[%clk 0:01:17]} 24. Ne5 {[%clk 0:02:14]}  Qe8 {[%clk 0:01:18]} 25. N3g4 {[%clk 0:02:11]}  Nxg4 {[%clk 0:01:17]} 26. Nxg4 {[%clk 0:02:12]}  Qg6 {[%clk 0:01:16]} 27. Ne5 {[%clk 0:02:10]}  Qe8 {[%clk 0:01:14]} 28. Bh3 {[%clk 0:01:55]}  Qh5 {[%clk 0:01:14]} 29. Nxc6 {[%clk 0:01:51]}  Rbe8 {[%clk 0:01:08]} 30. Nxe7+ {[%clk 0:01:47]}  Rxe7 {[%clk 0:01:08]} 31. Qg5 {[%clk 0:01:47]}  Qxg5 {[%clk 0:01:08]} 32. hxg5 {[%clk 0:01:47]}  Nb5 {[%clk 0:01:08]} 33. Rxa6 {[%clk 0:01:46]} 1-0


[Site "https://www.chess.com"]

[Event "Titled Tuesday Blitz August 3 2021"]
[White "Devaev, Alexander"]
[Black "Kretov, Evgenij"]
[WhiteFideId "4169395"]
[BlackFideId "4167821"]
[WhiteElo "2185"]
[BlackElo "2400"]
[Result "1-0"]
[Round "03"]
[TimeControl "180+1"]
[Date "2021.08.03"]
[WhiteClock "0:00:23"]
[BlackClock "0:01:11"]

1. Nf3 {[%clk 0:02:54]}  c5 {[%clk 0:03:00]} 2. c4 {[%clk 0:02:54]}  Nf6 {[%clk 0:02:59]} 3. Nc3 {[%clk 0:02:55]}  e6 {[%clk 0:03:00]} 4. e3 {[%clk 0:02:55]}  Be7 {[%clk 0:02:59]} 5. Be2 {[%clk 0:02:55]}  O-O {[%clk 0:02:58]} 6. O-O {[%clk 0:02:56]}  b6 {[%clk 0:02:58]} 7. a3 {[%clk 0:02:56]}  Bb7 {[%clk 0:02:58]} 8. Rb1 {[%clk 0:02:57]}  Nc6 {[%clk 0:02:58]} 9. Re1 {[%clk 0:02:57]}  d5 {[%clk 0:02:57]} 10. cxd5 {[%clk 0:02:57]}  Nxd5 {[%clk 0:02:58]} 11. Ne4 {[%clk 0:02:57]}  Rc8 {[%clk 0:02:56]} 12. d3 {[%clk 0:02:58]}  f5 {[%clk 0:02:51]} 13. Ng3 {[%clk 0:02:56]}  g6 {[%clk 0:02:48]} 14. Qc2 {[%clk 0:02:56]}  Bf6 {[%clk 0:02:48]} 15. Bf1 {[%clk 0:02:55]}  Re8 {[%clk 0:02:46]} 16. Bd2 {[%clk 0:02:54]}  Qd7 {[%clk 0:02:44]} 17. h3 {[%clk 0:02:54]}  Kg7 {[%clk 0:02:44]} 18. Rbc1 {[%clk 0:02:52]}  Red8 {[%clk 0:02:38]} 19. Qb1 {[%clk 0:02:52]}  Ne5 {[%clk 0:02:32]} 20. Nxe5 {[%clk 0:02:40]}  Bxe5 {[%clk 0:02:32]} 21. f4 {[%clk 0:02:21]}  Bb8 {[%clk 0:02:27]} 22. b4 {[%clk 0:02:12]}  cxb4 {[%clk 0:02:26]} 23. axb4 {[%clk 0:02:13]}  e5 {[%clk 0:02:26]} 24. Qa1 {[%clk 0:02:02]}  Rxc1 {[%clk 0:02:21]} 25. Rxc1 {[%clk 0:02:01]}  Re8 {[%clk 0:02:20]} 26. e4 {[%clk 0:01:46]}  fxe4 {[%clk 0:02:14]} 27. dxe4 {[%clk 0:01:46]}  Nf6 {[%clk 0:02:14]} 28. Bc3 {[%clk 0:01:41]}  Nxe4 {[%clk 0:02:10]} 29. Nxe4 {[%clk 0:01:38]}  Bxe4 {[%clk 0:02:10]} 30. Re1 {[%clk 0:01:31]}  Qd5 {[%clk 0:02:04]} 31. fxe5 {[%clk 0:01:07]}  Bxe5 {[%clk 0:02:02]} 32. Qxa7+ {[%clk 0:00:51]}  Kh6 {[%clk 0:01:46]} 33. Bxe5 {[%clk 0:00:48]}  Qxe5 {[%clk 0:01:45]} 34. Qxb6 {[%clk 0:00:47]}  Qf4 {[%clk 0:01:41]} 35. Qe3 {[%clk 0:00:39]}  Kg5 {[%clk 0:01:30]} 36. g3 {[%clk 0:00:24]}  Qxe3+ {[%clk 0:01:27]} 37. Rxe3 {[%clk 0:00:24]}  Bc6 {[%clk 0:01:23]} 38. Rxe8 {[%clk 0:00:23]}  Bxe8 {[%clk 0:01:23]} 39. b5 {[%clk 0:00:23]}  Kf6 {[%clk 0:01:12]} 40. b6 {[%clk 0:00:19]}  Bc6 {[%clk 0:01:12]} 41. Bg2 {[%clk 0:00:19]}  Bd7 {[%clk 0:01:10]} 42. b7 {[%clk 0:00:19]}  Ke7 {[%clk 0:01:09]} 43. b8=Q {[%clk 0:00:19]}  Be6 {[%clk 0:01:09]} 44. Qe5 {[%clk 0:00:19]}  Kf7 {[%clk 0:01:10]} 45. Bd5 {[%clk 0:00:20]}  Bxd5 {[%clk 0:01:10]} 46. Qxd5+ {[%clk 0:00:20]}  Kf6 {[%clk 0:01:11]} 47. h4 {[%clk 0:00:21]}  h5 {[%clk 0:01:10]} 48. Kf2 {[%clk 0:00:21]}  Ke7 {[%clk 0:01:10]} 49. Qe5+ {[%clk 0:00:21]}  Kf7 {[%clk 0:01:10]} 50. Ke3 {[%clk 0:00:21]}  Kf8 {[%clk 0:01:10]} 51. Kf4 {[%clk 0:00:22]}  Kf7 {[%clk 0:01:10]} 52. Kg5 {[%clk 0:00:22]}  Kf8 {[%clk 0:01:11]} 53. Kxg6 {[%clk 0:00:22]}  Kg8 {[%clk 0:01:11]} 54. Qe8# {[%clk 0:00:23]} 1-0


[Site "https://www.chess.com"]

[Event "Titled Tuesday Blitz August 3 2021"]
[White "Dobre, Claudiu-Cristian"]
[Black "Khoroshev, Nikita"]
[WhiteFideId "1211854"]
[BlackFideId "14200287"]
[WhiteElo "2259"]
[BlackElo "2328"]
[Result "0-1"]
[Round "03"]
[TimeControl "180+1"]
[Date "2021.08.03"]
[WhiteClock "0:00:07"]
[BlackClock "0:00:57"]

1. c4 {[%clk 0:03:00]}  e5 {[%clk 0:02:59]} 2. Nc3 {[%clk 0:02:59]}  Nc6 {[%clk 0:02:59]} 3. Nf3 {[%clk 0:03:00]}  d6 {[%clk 0:02:57]} 4. d4 {[%clk 0:02:40]}  Bg4 {[%clk 0:02:56]} 5. d5 {[%clk 0:02:27]}  Bxf3 {[%clk 0:02:52]} 6. gxf3 {[%clk 0:02:25]}  Nce7 {[%clk 0:02:52]} 7. Qb3 {[%clk 0:02:03]}  Qc8 {[%clk 0:02:44]} 8. h4 {[%clk 0:02:03]}  c6 {[%clk 0:02:39]} 9. Bh3 {[%clk 0:02:00]}  Qc7 {[%clk 0:02:39]} 10. e4 {[%clk 0:01:56]}  h5 {[%clk 0:02:38]} 11. Be3 {[%clk 0:01:53]}  Ng6 {[%clk 0:02:37]} 12. c5 {[%clk 0:01:22]}  Nxh4 {[%clk 0:02:27]} 13. O-O-O {[%clk 0:01:21]}  Nf6 {[%clk 0:02:22]} 14. cxd6 {[%clk 0:01:18]}  Bxd6 {[%clk 0:02:13]} 15. dxc6 {[%clk 0:01:17]}  bxc6 {[%clk 0:02:12]} 16. Bg5 {[%clk 0:00:56]}  Nxf3 {[%clk 0:02:09]} 17. Bxf6 {[%clk 0:00:56]}  gxf6 {[%clk 0:02:10]} 18. Qc4 {[%clk 0:00:49]}  Nd4 {[%clk 0:02:07]} 19. f4 {[%clk 0:00:47]}  Rb8 {[%clk 0:02:06]} 20. fxe5 {[%clk 0:00:44]}  Bxe5 {[%clk 0:02:07]} 21. Rxd4 {[%clk 0:00:40]}  Bxd4 {[%clk 0:02:03]} 22. Qxd4 {[%clk 0:00:40]}  Qf4+ {[%clk 0:02:04]} 23. Kb1 {[%clk 0:00:37]}  Rd8 {[%clk 0:02:02]} 24. Qc4 {[%clk 0:00:35]}  Rd6 {[%clk 0:01:55]} 25. Qf1 {[%clk 0:00:32]}  Qxf1+ {[%clk 0:01:53]} 26. Rxf1 {[%clk 0:00:31]}  Rg8 {[%clk 0:01:54]} 27. Rf2 {[%clk 0:00:27]}  Rg3 {[%clk 0:01:52]} 28. Bf5 {[%clk 0:00:27]}  Rdd3 {[%clk 0:01:31]} 29. Kc2 {[%clk 0:00:26]}  Rde3 {[%clk 0:01:28]} 30. Ne2 {[%clk 0:00:25]}  Rgf3 {[%clk 0:01:26]} 31. Rh2 {[%clk 0:00:25]}  h4 {[%clk 0:01:15]} 32. Nd4 {[%clk 0:00:25]}  Rf4 {[%clk 0:01:15]} 33. Ne2 {[%clk 0:00:22]}  Rf1 {[%clk 0:01:11]} 34. Nc3 {[%clk 0:00:17]}  Rf4 {[%clk 0:01:09]} 35. Ne2 {[%clk 0:00:13]}  Rf1 {[%clk 0:01:02]} 36. Nc1 {[%clk 0:00:13]}  Ree1 {[%clk 0:00:59]} 37. Nd3 {[%clk 0:00:13]}  Rh1 {[%clk 0:00:59]} 38. Rg2 {[%clk 0:00:14]}  Reg1 {[%clk 0:00:59]} 39. Rd2 {[%clk 0:00:13]}  h3 {[%clk 0:00:58]} 40. Nc5 {[%clk 0:00:12]}  Rc1+ {[%clk 0:00:58]} 41. Kb3 {[%clk 0:00:11]}  Rxc5 {[%clk 0:00:59]} 42. Rd3 {[%clk 0:00:09]}  h2 {[%clk 0:00:59]} 43. Rh3 {[%clk 0:00:09]}  Ke7 {[%clk 0:00:58]} 44. Kb4 {[%clk 0:00:07]}  Rcc1 {[%clk 0:00:58]} 45. b3 {[%clk 0:00:06]}  Rce1 {[%clk 0:00:57]} 46. a4 {[%clk 0:00:06]}  Re2 {[%clk 0:00:57]} 47. Bg4 {[%clk 0:00:07]}  Rxe4+ {[%clk 0:00:57]} 0-1


[Site "https://www.chess.com"]

[Event "Titled Tuesday Blitz August 3 2021"]
[White "Dowgird, Filip"]
[Black "Nasyrova, Ekaterina"]
[WhiteFideId "1121235"]
[BlackFideId "44157797"]
[WhiteElo "2209"]
[BlackElo "2115"]
[Result "0-1"]
[Round "03"]
[TimeControl "180+1"]
[Date "2021.08.03"]
[WhiteClock "0:01:57"]
[BlackClock "0:01:57"]

1. d4 {[%clk 0:02:56]}  d5 {[%clk 0:02:57]} 2. Bf4 {[%clk 0:02:56]}  e6 {[%clk 0:02:56]} 3. e3 {[%clk 0:02:57]}  Bd6 {[%clk 0:02:56]} 4. Bg3 {[%clk 0:02:57]}  Ne7 {[%clk 0:02:56]} 5. Bd3 {[%clk 0:02:56]}  Nf5 {[%clk 0:02:55]} 6. Bxf5 {[%clk 0:02:41]}  exf5 {[%clk 0:02:55]} 7. Ne2 {[%clk 0:02:41]}  O-O {[%clk 0:02:53]} 8. Nd2 {[%clk 0:02:40]}  Nc6 {[%clk 0:02:46]} 9. a3 {[%clk 0:02:35]}  Ne7 {[%clk 0:02:45]} 10. c4 {[%clk 0:02:34]}  c6 {[%clk 0:02:37]} 11. c5 {[%clk 0:02:32]}  Bc7 {[%clk 0:02:37]} 12. b4 {[%clk 0:02:30]}  Ng6 {[%clk 0:02:36]} 13. Bxc7 {[%clk 0:02:29]}  Qxc7 {[%clk 0:02:36]} 14. g3 {[%clk 0:02:29]}  Re8 {[%clk 0:02:32]} 15. h4 {[%clk 0:02:27]}  f4 {[%clk 0:02:18]} 16. gxf4 {[%clk 0:02:12]}  Bg4 {[%clk 0:02:17]} 17. f3 {[%clk 0:02:12]}  Rxe3 {[%clk 0:01:59]} 18. fxg4 {[%clk 0:02:11]}  Nxf4 {[%clk 0:01:58]} 19. Rh2 {[%clk 0:01:57]}  Rae8 {[%clk 0:01:57]} 0-1


[Site "https://www.chess.com"]

[Event "Titled Tuesday Blitz August 3 2021"]
[White "Farahat, Ali"]
[Black "Noritsyn, Nikolay"]
[WhiteFideId "10600507"]
[BlackFideId "2604922"]
[WhiteElo "2321"]
[BlackElo "2527"]
[Result "0-1"]
[Round "03"]
[TimeControl "180+1"]
[Date "2021.08.03"]
[WhiteClock "0:00:07"]
[BlackClock "0:00:15"]

1. e4 {[%clk 0:03:00]}  c5 {[%clk 0:02:58]} 2. Nf3 {[%clk 0:03:01]}  d6 {[%clk 0:02:56]} 3. c3 {[%clk 0:03:01]}  Nf6 {[%clk 0:02:55]} 4. h3 {[%clk 0:03:02]}  Nc6 {[%clk 0:02:54]} 5. Bd3 {[%clk 0:03:02]}  d5 {[%clk 0:02:53]} 6. e5 {[%clk 0:03:01]}  c4 {[%clk 0:02:54]} 7. Bc2 {[%clk 0:02:55]}  Nd7 {[%clk 0:02:53]} 8. e6 {[%clk 0:02:56]}  fxe6 {[%clk 0:02:52]} 9. O-O {[%clk 0:02:56]}  e5 {[%clk 0:02:48]} 10. Re1 {[%clk 0:02:53]}  e4 {[%clk 0:02:40]} 11. Ng5 {[%clk 0:02:50]}  Nf6 {[%clk 0:02:35]} 12. b3 {[%clk 0:02:00]}  cxb3 {[%clk 0:02:23]} 13. Bxb3 {[%clk 0:01:58]}  h6 {[%clk 0:02:23]} 14. Nxe4 {[%clk 0:01:42]}  dxe4 {[%clk 0:02:19]} 15. d4 {[%clk 0:01:31]}  e5 {[%clk 0:01:58]} 16. Nd2 {[%clk 0:01:25]}  Bf5 {[%clk 0:01:52]} 17. d5 {[%clk 0:01:08]}  Na5 {[%clk 0:01:47]} 18. Ba4+ {[%clk 0:00:53]}  Kf7 {[%clk 0:01:47]} 19. c4 {[%clk 0:00:51]}  Bc5 {[%clk 0:01:40]} 20. Bb2 {[%clk 0:00:46]}  Bxf2+ {[%clk 0:01:22]} 21. Kxf2 {[%clk 0:00:46]}  Qb6+ {[%clk 0:01:22]} 22. Kg3 {[%clk 0:00:39]}  Qxb2 {[%clk 0:01:19]} 23. Rf1 {[%clk 0:00:39]}  Bg6 {[%clk 0:01:07]} 24. Rb1 {[%clk 0:00:38]}  Qd4 {[%clk 0:00:58]} 25. Nb3 {[%clk 0:00:31]}  Qxd1 {[%clk 0:00:53]} 26. Rbxd1 {[%clk 0:00:31]}  Nxb3 {[%clk 0:00:52]} 27. Bxb3 {[%clk 0:00:30]}  b6 {[%clk 0:00:48]} 28. d6 {[%clk 0:00:27]}  Ke8 {[%clk 0:00:46]} 29. c5 {[%clk 0:00:26]}  bxc5 {[%clk 0:00:46]} 30. Ba4+ {[%clk 0:00:25]}  Kf8 {[%clk 0:00:39]} 31. Rc1 {[%clk 0:00:20]}  Rc8 {[%clk 0:00:26]} 32. Rb1 {[%clk 0:00:19]}  Rd8 {[%clk 0:00:24]} 33. Rb7 {[%clk 0:00:18]}  h5 {[%clk 0:00:21]} 34. Rc1 {[%clk 0:00:17]}  h4+ {[%clk 0:00:21]} 35. Kh2 {[%clk 0:00:17]}  Rh5 {[%clk 0:00:18]} 36. Rxc5 {[%clk 0:00:17]}  e3 {[%clk 0:00:18]} 37. Rc3 {[%clk 0:00:15]}  e4 {[%clk 0:00:17]} 38. Rxe3 {[%clk 0:00:15]}  Rd5 {[%clk 0:00:18]} 39. Rxa7 {[%clk 0:00:14]}  R5xd6 {[%clk 0:00:18]} 40. Re1 {[%clk 0:00:14]}  Rd2 {[%clk 0:00:17]} 41. Bb3 {[%clk 0:00:14]}  Rf2 {[%clk 0:00:17]} 42. Re3 {[%clk 0:00:14]}  Rdd2 {[%clk 0:00:16]} 43. Ra8+ {[%clk 0:00:13]}  Ke7 {[%clk 0:00:16]} 44. Ra7+ {[%clk 0:00:13]}  Kd6 {[%clk 0:00:16]} 45. Ra6+ {[%clk 0:00:12]}  Kc5 {[%clk 0:00:16]} 46. Rc3+ {[%clk 0:00:12]}  Kb5 {[%clk 0:00:14]} 47. Bc4+ {[%clk 0:00:12]}  Kb4 {[%clk 0:00:13]} 48. Raa3 {[%clk 0:00:10]}  Rxg2+ {[%clk 0:00:13]} 49. Kh1 {[%clk 0:00:10]}  Rh2+ {[%clk 0:00:14]} 50. Kg1 {[%clk 0:00:10]}  Rdg2+ {[%clk 0:00:15]} 51. Kf1 {[%clk 0:00:11]}  Rf2+ {[%clk 0:00:14]} 52. Kg1 {[%clk 0:00:10]}  Rb2 {[%clk 0:00:15]} 53. Bb3 {[%clk 0:00:09]}  Rhg2+ {[%clk 0:00:14]} 54. Kh1 {[%clk 0:00:09]}  Rgd2 {[%clk 0:00:15]} 55. Bd1 {[%clk 0:00:07]}  e3 {[%clk 0:00:15]} 56. Rab3+ {[%clk 0:00:06]}  Rxb3 {[%clk 0:00:14]} 57. Rxb3+ {[%clk 0:00:07]}  Kc4 {[%clk 0:00:15]} 0-1


[Site "https://www.chess.com"]